fUST/lending_fUST_20250920
["ID","MTS","AMOUNT","RATE_DAILY","PERIOD"]
[386465465,1758309043991,-480.0,0.00021421,2]
[386465467,1758309044000,-469.88258194,0.00021421,2]
[386465469,1758309044010,-480.0,0.00021421,2]
[386465471,1758309044019,-482.81032973,0.00021421,2]
[386465473,1758309044029,-480.0,0.00021421,2]
[386465475,1758309044038,-480.0,0.00021421,2]
[386465477,1758309044047,-480.0,0.00021421,2]
[386465479,1758309044057,-480.0,0.00021421,2]
[386465481,1758309044066,-480.0,0.00021421,2]
[386465483,1758309044076,-480.0,0.00021421,2]
[386465485,1758309044085,-480.0,0.00021421,2]
[386465487,1758309044095,-480.0,0.00021421,2]
[386465489,1758309044104,-480.0,0.00021421,2]
[386465491,1758309044114,-439.93002383,0.00021421,2]
[386465493,1758309044123,-502.71165054,0.00021421,2]
[386465495,1758309044133,-480.0,0.00021421,2]
[386465497,1758309044142,-480.0,0.00021421,2]
[386465499,1758309044152,-480.0,0.00021421,2]
[386465501,1758309044162,-480.0,0.00021421,2]
[386465503,1758309044171,-628.78393172,0.00021424,2]
[386465504,1758309044180,-480.0,0.00021424,2]
[386465506,1758309044190,-480.0,0.00021424,2]
[386465508,1758309044200,-480.0,0.00021424,2]
[386465510,1758309044210,-480.0,0.00021424,2]
[386465512,1758309044219,-480.0,0.00021424,2]
[386465514,1758309044228,-480.0,0.00021424,2]
[386465516,1758309044237,-480.0,0.00021424,2]
[386465518,1758309044247,-480.0,0.00021424,2]
[386465520,1758309044257,-480.0,0.00021424,2]
[386465522,1758309044266,-480.0,0.00021424,2]
[386465524,1758309044276,-480.0,0.00021424,2]
[386465526,1758309044286,-480.0,0.00021424,2]
[386465528,1758309044295,-480.0,0.00021424,2]
[386465530,1758309044305,-480.0,0.00021424,2]
[386465532,1758309044316,-480.0,0.00021424,2]
[386465534,1758309044325,-496.27760108,0.00021424,2]
[386465536,1758309044334,-489.20108789,0.00021426,2]
[386465538,1758309044345,-480.0,0.00021426,2]
[386465540,1758309044355,-676.51,0.00021426,2]
[386465542,1758309044364,-480.0,0.00021426,2]
[386465544,1758309044373,-480.0,0.00021426,2]
[386465545,1758309044383,-480.0,0.00021426,2]
[386465548,1758309044393,-1468.31,0.00021426,2]
[386465550,1758309044403,-480.0,0.00021426,2]
[386465552,1758309044412,-480.0,0.00021426,2]
[386465553,1758309044421,-480.0,0.00021429,2]
[386465555,1758309044431,-480.0,0.00021429,2]
[386465557,1758309044440,-500.0,0.00021473,2]
[386465559,1758309044454,-500.0,0.00021473,2]
[386465561,1758309044463,-500.0,0.00021473,2]
[386465563,1758309044472,-500.0,0.00021473,2]
[386465565,1758309044482,-500.0,0.00021473,2]
[386465567,1758309044492,-2858.92526416,0.00021592,2]
[386465569,1758309044502,-261.3,0.0002169,2]
[386465571,1758309044512,-480.0,0.0002169,2]
[386465573,1758309044522,-480.0,0.00021691,2]
[386465575,1758309044531,-480.0,0.00021692,2]
[386465577,1758309044541,-480.0,0.00021692,2]
[386465579,1758309044550,-480.0,0.00021692,2]
[386465581,1758309044559,-480.0,0.00021692,2]
[386465583,1758309044569,-176.7,0.00021692,2]
[386465585,1758309044578,-459.06,0.00021692,2]
[386465587,1758309044587,-480.0,0.00021692,2]
[386465589,1758309044596,-480.0,0.00021692,2]
[386465591,1758309044605,-551.1,0.00021692,2]
[386465593,1758309044615,-201.74,0.00021692,2]
[386465595,1758309044624,-480.0,0.00021692,2]
[386465597,1758309044634,-480.0,0.00021692,2]
[386465599,1758309044643,-480.0,0.00021693,2]
[386465601,1758309044651,-480.0,0.00021693,2]
[386465603,1758309044660,-480.0,0.00021693,2]
[386465605,1758309044669,-480.0,0.00021693,2]
[386465607,1758309044679,-480.0,0.00021693,2]
[386465609,1758309044688,-614.94940642,0.00021693,2]
[386465611,1758309044698,-236.9,0.00021693,2]
[386465613,1758309044707,-480.0,0.00021693,2]
[386465615,1758309044716,-480.0,0.00021693,2]
[386465617,1758309044725,-480.0,0.00021693,2]
[386465619,1758309044734,-480.0,0.00021693,2]
[386465620,1758309044744,-480.0,0.00021693,2]
[386465622,1758309044753,-484.82,0.00021693,2]
[386465624,1758309044762,-480.0,0.00021693,2]
[386465625,1758309044771,-480.0,0.00021693,2]
[386465627,1758309044781,-480.0,0.00021693,2]
[386465629,1758309044790,-480.0,0.00021694,2]
[386465631,1758309044799,-480.0,0.00021694,2]
[386465633,1758309044808,-266.88,0.00021694,2]
[386465635,1758309044818,-676.51,0.000217,2]
[386465637,1758309044827,-480.0,0.000217,2]
[386465639,1758309044837,-480.0,0.000217,2]
[386465641,1758309044846,-1468.31,0.000217,2]
[386465642,1758309044856,-480.0,0.000217,2]
[386465644,1758309044867,-480.0,0.000217,2]
[386465646,1758309044876,-480.0,0.00021703,2]
[386465648,1758309044885,-480.0,0.00021964,2]
[386465650,1758309044895,-480.0,0.00021965,2]
[386465652,1758309044904,-480.0,0.00021966,2]
[386465654,1758309044914,-151.64,0.00021966,2]
[386465656,1758309044923,-480.0,0.00021966,2]
[386465658,1758309044934,-480.0,0.00021966,2]
[386465659,1758309044943,-480.0,0.00021966,2]
[386465661,1758309044952,-480.0,0.00021966,2]
[386465663,1758309044962,-480.0,0.00021966,2]
[386465665,1758309044971,-288.4,0.00021966,2]
[386465667,1758309044981,-480.0,0.00021967,2]
[386465669,1758309044990,-480.0,0.00021967,2]
[386465671,1758309044999,-480.0,0.00021967,2]
[386465673,1758309045008,-480.0,0.00021967,2]
[386465675,1758309045018,-480.0,0.00021967,2]
[386465676,1758309045028,-480.0,0.00021967,2]
[386465678,1758309045045,-480.0,0.00021967,2]
[386465680,1758309045055,-557.36,0.00021968,2]
[386465682,1758309045064,-480.0,0.00021968,2]
[386465684,1758309045072,-676.51,0.00021974,2]
[386465686,1758309045081,-480.0,0.00021974,2]
[386465688,1758309045091,-480.0,0.00021974,2]
[386465690,1758309045100,-1468.31,0.00021974,2]
[386465692,1758309045109,-480.0,0.00021974,2]
[386465693,1758309045118,-480.0,0.00021977,2]
[386465695,1758309045128,-152.0,0.00022,2]
[386465697,1758309045137,-5049.97,0.00022,7]
[386465699,1758309045146,-163.3,0.00022,2]
[386465701,1758309045155,-383.59525871,0.00022021,2]
[386465703,1758309045164,-480.0,0.00022238,2]
[386465705,1758309045174,-480.0,0.00022239,2]
[386465707,1758309045184,-480.0,0.0002224,2]
[386465708,1758309045193,-480.0,0.0002224,2]
[386465710,1758309045204,-480.0,0.0002224,2]
[386465712,1758309045213,-480.0,0.0002224,2]
[386465714,1758309045223,-480.0,0.0002224,2]
[386465716,1758309045232,-480.0,0.0002224,2]
[386465718,1758309045242,-480.0,0.00022241,2]
[386465720,1758309045251,-480.0,0.00022241,2]
[386465722,1758309045261,-480.0,0.00022241,2]
[386465724,1758309045270,-570.88,0.00022241,2]
[386465726,1758309045279,-480.0,0.00022241,2]
[386465728,1758309045290,-480.0,0.00022241,2]
[386465729,1758309045299,-480.0,0.00022241,2]
[386465731,1758309045308,-239.44,0.00022242,2]
[386465733,1758309045317,-676.51,0.00022248,2]
[386465735,1758309045327,-480.0,0.00022248,2]
[386465737,1758309045336,-480.0,0.00022248,2]
[386465739,1758309045345,-1468.31,0.00022248,2]
[386465741,1758309045355,-480.0,0.00022248,2]
[386465743,1758309045364,-480.0,0.00022251,2]
[386465744,1758309045374,-480.0,0.00022512,2]
[386465746,1758309045383,-480.0,0.00022513,2]
[386465748,1758309045393,-480.0,0.00022514,2]
[386465750,1758309045402,-480.0,0.00022514,2]
[386465752,1758309045411,-480.0,0.00022514,2]
[386465755,1758309045420,-209.85,0.00022514,2]
[386465757,1758309045430,-480.0,0.00022514,2]
[386465760,1758309045439,-337.64,0.00022514,2]
[386465762,1758309045452,-480.0,0.00022515,2]
[386465763,1758309045461,-232.9,0.00022515,2]
[386465765,1758309045470,-480.0,0.00022515,2]
[386465767,1758309045480,-480.0,0.00022515,2]
[386465769,1758309045489,-480.0,0.00022515,2]
[386465771,1758309045498,-425.68,0.00022515,2]
[386465773,1758309045507,-676.51,0.00022522,2]
[386465775,1758309045516,-480.0,0.00022522,2]
[386465777,1758309045526,-480.0,0.00022522,2]
[386465779,1758309045536,-1468.31,0.00022522,2]
[386465781,1758309045545,-480.0,0.00022522,2]
[386465782,1758309045553,-480.0,0.00022525,2]
[386465784,1758309045561,-260.0,0.00022567,2]
[386465786,1758309045570,-611.4,0.00022786,2]
[386465788,1758309045578,-480.0,0.00022787,2]
[386465790,1758309045587,-480.0,0.00022788,2]
[386465792,1758309045596,-480.0,0.00022788,2]
[386465794,1758309045606,-480.0,0.00022788,2]
[386465796,1758309045615,-513.81,0.00022788,2]
[386465798,1758309045626,-480.0,0.00022789,2]
[386465799,1758309045635,-366.34,0.00022789,2]
[386465801,1758309045644,-480.0,0.00022789,2]
[386465803,1758309045653,-480.0,0.00022789,2]
[386465805,1758309045663,-676.51,0.00022796,2]
[386465807,1758309045672,-480.0,0.00022796,2]
[386465809,1758309045682,-480.0,0.00022796,2]
[386465811,1758309045691,-1468.31,0.00022796,2]
[386465813,1758309045700,-480.0,0.00022796,2]
[386465815,1758309045710,-415.2,0.00022799,2]
[386465817,1758309045719,-163.3,0.00022992,2]
[386465818,1758309045728,-420.0,0.00022993,2]
[386465820,1758309045738,-480.0,0.00022998,2]
[386465822,1758309045748,-480.0,0.00022998,2]
[386465824,1758309045758,-480.0,0.00022998,2]
[386465826,1758309045767,-480.0,0.00022998,2]
[386465828,1758309045776,-480.0,0.00022998,2]
[386465830,1758309045786,-480.0,0.00022998,2]
[386465832,1758309045796,-160.0,0.00023,2]
[386465834,1758309045806,-160.0,0.00023,2]
[386465836,1758309045816,-160.0,0.00023,2]
[386465838,1758309045825,-233.43972884,0.00023,2]
[386465840,1758309045834,-480.0,0.00023061,2]
[386465841,1758309045843,-480.0,0.00023062,2]
[386465843,1758309045852,-480.0,0.00023062,2]
[386465845,1758309045861,-263.68,0.00023062,2]
[386465847,1758309045872,-365.86,0.00023063,2]
[386465849,1758309045882,-480.0,0.00023063,2]
[386465851,1758309045891,-480.0,0.00023063,2]
[386465853,1758309045901,-676.51,0.0002307,2]
[386465855,1758309045911,-376.1,0.0002307,2]
[386465857,1758309045921,-480.0,0.0002307,2]
[386465858,1758309045931,-1468.31,0.0002307,2]
[386465860,1758309045940,-480.0,0.0002307,2]
[386465862,1758309045949,-480.0,0.00023272,2]
[386465863,1758309045959,-480.0,0.00023272,2]
[386465865,1758309045967,-480.0,0.00023272,2]
[386465867,1758309045977,-413.87109012,0.00023287,2]
[386465869,1758309045986,-1688.91179433,0.000233,2]
[386465870,1758309045995,-480.0,0.00023335,2]
[386465872,1758309046005,-480.0,0.00023336,2]
[386465874,1758309046014,-289.28,0.00023336,2]
[386465876,1758309046023,-480.0,0.00023337,2]
[386465877,1758309046032,-285.64,0.00023337,2]
[386465879,1758309046043,-676.51,0.00023344,2]
[386465881,1758309046052,-480.0,0.00023344,2]
[386465883,1758309046061,-1468.31,0.00023344,2]
[386465885,1758309046071,-384.89,0.00023344,2]
[386465886,1758309046080,-480.0,0.00023546,2]
[386465888,1758309046090,-228.36,0.00023546,2]
[386465890,1758309046099,-480.0,0.00023609,2]
[386465892,1758309046109,-480.0,0.0002361,2]
[386465894,1758309046118,-480.0,0.00023611,2]
[386465895,1758309046128,-676.51,0.00023618,2]
[386465897,1758309046137,-480.0,0.00023618,2]
[386465899,1758309046147,-1468.31,0.00023618,2]
[386465901,1758309046157,-500.0,0.00023708,2]
[386465903,1758309046166,-480.0,0.0002382,2]
[386465904,1758309046175,-480.0,0.00023883,2]
[386465906,1758309046186,-480.0,0.00023884,2]
[386465908,1758309046195,-480.0,0.00023885,2]
[386465910,1758309046204,-676.51,0.00023892,2]
[386465911,1758309046213,-480.0,0.00023892,2]
[386465913,1758309046222,-1468.31,0.00023892,2]
[386465915,1758309046231,-163.3,0.00024,2]
[386465916,1758309046241,-250.926,0.00024057,5]
[386465918,1758309046250,-480.0,0.00024094,2]
[386465920,1758309046260,-480.0,0.00024157,2]
[386465922,1758309046269,-480.0,0.00024158,2]
[386465924,1758309046279,-480.0,0.00024159,2]
[386465925,1758309046288,-676.51,0.00024166,2]
[386465927,1758309046297,-480.0,0.00024166,2]
[386465929,1758309046307,-1468.31,0.00024166,2]
[386465931,1758309046316,-480.0,0.00024368,2]
[386465932,1758309046325,-480.0,0.00024431,2]
[386465934,1758309046335,-480.0,0.00024432,2]
[386465936,1758309046344,-480.0,0.00024433,2]
[386465938,1758309046354,-676.51,0.0002444,2]
[386465939,1758309046363,-480.0,0.0002444,2]
[386465941,1758309046372,-1468.31,0.0002444,2]
[386465943,1758309046382,-480.0,0.00024642,2]
[386465945,1758309046391,-5049.97,0.000247,7]
[386465946,1758309046401,-480.0,0.00024705,2]
[386465948,1758309046410,-480.0,0.00024706,2]
[386465950,1758309046420,-480.0,0.00024707,2]
[386465952,1758309046429,-676.51,0.00024714,2]
[386465954,1758309046438,-480.0,0.00024714,2]
[386465956,1758309046450,-1468.31,0.00024714,2]
[386465958,1758309046459,-410.0,0.0002479,2]
[386465959,1758309046469,-415.167,0.0002479,2]
[386465961,1758309046478,-7424.78294507,0.000248,7]
[386465963,1758309046488,-67021.5894287,0.000248,2]
[386465964,1758309046498,-163.3,0.00024806,2]
[386465966,1758309046507,-287376.13518724,0.000249,2]
[386465981,1758309046671,-14369.3006271,0.000249,2]
[386465983,1758309046683,-1448.41054981,0.000249,2]
[386465985,1758309046695,-504.32018305,0.000249,2]
[386465988,1758309046707,-8651.56123663,0.000249,2]
[386465990,1758309046718,-3388.57278782,0.000249,2]
[386465992,1758309046730,-3447.6,0.000249,2]
[386466034,1758309047211,-480.0,0.00021145,2]
[386466036,1758309047221,-480.0,0.00021419,2]
[386466038,1758309047231,-480.0,0.00021693,2]
[386466040,1758309047241,-15942.82351801,0.000249,2]
[386466042,1758309047252,-1891.5538386,0.000249,2]
[386466044,1758309047264,-563.27660365,0.000249,2]
[386466046,1758309047275,-1139.4610469,0.000249,2]
[386466048,1758309047286,-12006.26705027,0.000249,2]
[386466050,1758309047297,-601.22665515,0.000249,2]
[386466052,1758309047309,-8640.81944,0.000249,2]
[386466067,1758309047475,-376.69209221,0.00021141,2]
[386466069,1758309047485,-500.0,0.00021141,2]
[386466071,1758309047495,-500.0,0.00021141,2]
[386466073,1758309047504,-500.0,0.00021141,2]
[386466075,1758309047513,-406.82880514,0.00021141,2]
[386466077,1758309047523,-500.0,0.00021141,2]
[386466078,1758309047532,-588.08969437,0.00021141,2]
[386466080,1758309047542,-500.0,0.00021141,2]
[386466082,1758309047551,-500.0,0.00021141,2]
[386466084,1758309047560,-500.0,0.00021141,2]
[386466086,1758309047570,-500.0,0.00021141,2]
[386466088,1758309047579,-480.0,0.00021142,2]
[386466089,1758309047588,-480.0,0.00021142,2]
[386466091,1758309047598,-391.94558077,0.00021145,2]
[386466093,1758309047608,-480.0,0.00021416,2]
[386466095,1758309047617,-49753.59905877,0.000249,2]
[386466097,1758309047626,-480.0,0.00024916,2]
[386466099,1758309047635,-480.0,0.00024979,2]
[386466101,1758309047644,-413.03,0.00024981,2]
[386466102,1758309047654,-676.51,0.00024988,2]
[386466104,1758309047663,-480.0,0.00024988,2]
[386466106,1758309047674,-1468.31,0.00024988,2]
[386466108,1758309047683,-587.0,0.00025008,2]
[386466110,1758309047693,-977.0,0.00025146,2]
[386466112,1758309047703,-634.0,0.00025146,2]
[386466114,1758309047712,-2158.0,0.00025146,2]
[386466115,1758309047721,-480.0,0.0002519,2]
[386466117,1758309047731,-480.0,0.00025253,2]
[386466119,1758309047740,-676.51,0.00025262,2]
[386466121,1758309047750,-480.0,0.00025262,2]
[386466123,1758309047759,-1468.31,0.00025262,2]
[386466125,1758309047770,-1688.91179433,0.00025282,2]
[386466127,1758309047780,-2858.92526415,0.00025418,2]
[386466129,1758309047789,-480.0,0.00025464,2]
[386466131,1758309047799,-480.0,0.00025527,2]
[386466132,1758309047809,-676.51,0.00025536,2]
[386466134,1758309047818,-480.0,0.00025536,2]
[386466136,1758309047827,-1468.31,0.00025536,2]
[386466138,1758309047837,-1838.0,0.00025652,2]
[386466140,1758309047846,-163.3,0.00025714,7]
[386466142,1758309047856,-480.0,0.00025738,2]
[386466144,1758309047865,-480.0,0.00025801,2]
[386466146,1758309047875,-676.51,0.0002581,2]
[386466147,1758309047884,-480.0,0.0002581,2]
[386466149,1758309047894,-1468.31,0.0002581,2]
[386466151,1758309047903,-480.0,0.00026012,2]
[386466153,1758309047913,-480.0,0.00026075,2]
[386466155,1758309047922,-676.51,0.00026084,2]
[386466157,1758309047931,-170.38,0.00026084,2]
[386466159,1758309047940,-1468.31,0.00026084,2]
[386466160,1758309047950,-480.0,0.00026286,2]
[386466162,1758309047959,-500.0,0.00026323,2]
[386466164,1758309047968,-8377.69867859,0.00026348,2]
[386466166,1758309047978,-600.04,0.00026349,2]
[386466168,1758309047987,-676.51,0.00026358,2]
[386466170,1758309047997,-1468.31,0.00026358,2]
[386466172,1758309048007,-168.0,0.00026379,2]
[386466174,1758309048017,-168.0,0.00026464,2]
[386466176,1758309048026,-168.0,0.00026477,2]
[386466177,1758309048035,-468.84,0.0002656,2]
[386466179,1758309048045,-163.3,0.00026622,7]
[386466181,1758309048055,-676.51,0.00026632,2]
[386466183,1758309048065,-1468.31,0.00026632,2]
[386466185,1758309048074,-168.0,0.00026886,2]
[386466187,1758309048083,-168.0,0.00026897,2]
[386466189,1758309048093,-168.0,0.00026898,2]
[386466190,1758309048103,-2000.0,0.000269,2]
[386466192,1758309048112,-5049.97,0.000269,7]
[386466194,1758309048122,-676.51,0.00026906,2]
[386466196,1758309048131,-1468.31,0.00026906,2]
[386466198,1758309048140,-6709.28956019,0.00027,3]
[386466200,1758309048150,-168.0,0.00027163,2]
[386466201,1758309048160,-168.0,0.00027177,2]
[386466203,1758309048170,-676.51,0.0002718,2]
[386466205,1758309048180,-1468.31,0.0002718,2]
[386466207,1758309048190,-823.0,0.00027199,2]
[386466209,1758309048201,-168.0,0.00027259,2]
[386466211,1758309048210,-1688.91179433,0.00027263,2]
[386466213,1758309048219,-676.64,0.00027453,2]
[386466215,1758309048228,-1468.51999999,0.00027453,2]
[386466216,1758309048238,-210.0,0.0002747,18]
[386466218,1758309048248,-163.3,0.00027529,7]
[386466220,1758309048257,-161.5399866,0.00027859,30]
[386466222,1758309048267,-168.0,0.00027893,2]
[386466224,1758309048275,-1078.0,0.000279,2]
[386466225,1758309048285,-168.0,0.00027913,2]
[386466227,1758309048294,-160.0,0.00028,3]
[386466229,1758309048303,-160.0,0.00028,3]
[386466231,1758309048314,-217.99592756,0.00028,3]
[386466233,1758309048323,-2000.01,0.00028,2]
[386466235,1758309048332,-160.0,0.000281,7]
[386466237,1758309048342,-160.0,0.000281,7]
[386466238,1758309048351,-217.99592756,0.000281,7]
[386466240,1758309048361,-977.0,0.00028146,2]
[386466242,1758309048371,-634.0,0.00028146,2]
[386466244,1758309048380,-2158.0,0.00028146,2]
[386466246,1758309048389,-168.0,0.00028188,2]
[386466248,1758309048400,-168.0,0.00028268,2]
[386466249,1758309048411,-168.0,0.00028301,2]
[386466251,1758309048423,-168.0,0.0002839,2]
[386466253,1758309048432,-163.3,0.00028437,30]
[386466255,1758309048442,-500.0,0.0002846,5]
[386466257,1758309048455,-500.0,0.0002846,20]
[386466259,1758309048464,-507.22541296,0.0002846,5]
[386466261,1758309048473,-500.0,0.00028515,7]
[386466263,1758309048482,-168.0,0.00028601,2]
[386466264,1758309048494,-168.0,0.00028793,2]
[386466266,1758309048503,-168.0,0.00028894,2]
[386466268,1758309048513,-160.0,0.00029,10]
[386466270,1758309048524,-5049.97,0.00029,7]
[386466272,1758309048535,-168.0,0.00029047,2]
[386466274,1758309048545,-16755.3973572,0.00029218,2]
[386466276,1758309048554,-74430.20379434,0.00029228,2]
[386466277,1758309048563,-3892.73148693,0.00029244,2]
[386466279,1758309048573,-1688.91179433,0.00029244,2]
[386466281,1758309048584,-2858.92526415,0.00029244,2]
[386466283,1758309048594,-5000.0,0.00029253,30]
[386466285,1758309048604,-151.0,0.000293,20]
[386466287,1758309048613,-151.30661811,0.00029323,2]
[386466290,1758309048644,-500.0,0.00029323,2]
[386466292,1758309048654,-151.0,0.00029328,7]
[386466294,1758309048663,-151.0,0.00029328,7]
[386466296,1758309048673,-500.0,0.00029337,5]
[386466298,1758309048682,-233.43972884,0.00029337,10]
[386466299,1758309048691,-531.75067929,0.00029337,10]
[386466301,1758309048700,-215.0,0.0002934,24]
[386466303,1758309048710,-160.0,0.0002934,30]
[386466305,1758309048719,-160.0,0.0002934,10]
[386466307,1758309048729,-160.0,0.0002934,30]
[386466309,1758309048739,-160.0,0.0002934,10]
[386466310,1758309048748,-217.99592756,0.0002934,30]
[386466312,1758309048757,-217.99592756,0.0002934,10]
[386466314,1758309048767,-1764.96160585,0.00029344,2]
[386466316,1758309048777,-652716.37755847,0.00029344,20]
[386468863,1758310232145,-937.83519758,0.00021134,2]
[386468865,1758310232156,-160.0,0.00021134,2]
[386468867,1758310232166,-827.55,0.00021136,3]
[386468869,1758310232175,-627.20397107,0.00021137,2]
[386468870,1758310232184,-300.0,0.00021138,2]
[386468873,1758310232193,-480.0,0.00021138,2]
[386468876,1758310232202,-480.0,0.00021138,2]
[386468879,1758310232211,-480.0,0.00021138,2]
[386468881,1758310232220,-14620.567586,0.00021139,2]
[386468885,1758310232249,-1118.12131039,0.00021139,2]
[386468887,1758310232260,-365.44712279,0.00021139,2]
[386468889,1758310232269,-91.03248363,0.00021139,2]
[386469322,1758310238260,-363.19970463,0.00021138,2]
[386469323,1758310238269,-480.0,0.00021139,2]
[386469324,1758310238279,-480.0,0.00021139,2]
[386469325,1758310238287,-480.0,0.00021139,2]
[386469326,1758310238296,-480.0,0.00021139,2]
[386469327,1758310238305,-33.789675,0.00021139,2]
[386469328,1758310238316,-446.210325,0.00021139,2]
[386469330,1758310238325,-480.0,0.00021139,2]
[386469331,1758310238334,-480.0,0.00021139,2]
[386469332,1758310238343,-480.0,0.00021139,2]
[386469333,1758310238352,-480.0,0.00021139,2]
[386469334,1758310238362,-480.0,0.00021139,2]
[386469335,1758310238370,-480.0,0.00021139,2]
[386469336,1758310238379,-480.0,0.00021139,2]
[386469337,1758310238388,-501.10301019,0.00021139,2]
[386469338,1758310238397,-480.0,0.00021139,2]
[386469339,1758310238405,-480.0,0.00021139,2]
[386469340,1758310238414,-480.0,0.00021139,2]
[386469341,1758310238423,-480.0,0.00021139,2]
[386469342,1758310238432,-480.0,0.00021139,2]
[386469343,1758310238441,-480.0,0.00021139,2]
[386469344,1758310238450,-480.0,0.00021139,2]
[386469345,1758310238459,-480.0,0.00021139,2]
[386469346,1758310238468,-480.0,0.00021139,2]
[386469347,1758310238477,-480.0,0.00021139,2]
[386469348,1758310238485,-480.0,0.00021139,2]
[386469349,1758310238494,-480.0,0.00021139,2]
[386469350,1758310238503,-480.0,0.00021139,2]
[386469351,1758310238512,-480.0,0.00021139,2]
[386469352,1758310238522,-480.0,0.00021139,2]
[386469353,1758310238532,-480.0,0.00021139,2]
[386469354,1758310238541,-480.0,0.0002114,2]
[386469355,1758310238550,-480.0,0.0002114,2]
[386469356,1758310238559,-480.0,0.0002114,2]
[386469357,1758310238569,-480.0,0.0002114,2]
[386469358,1758310238578,-480.0,0.0002114,2]
[386469359,1758310238587,-248.83554335,0.0002114,2]
[386469437,1758310240246,-324.97025148,0.00021139,2]
[386469441,1758310240303,-155.02974852,0.00021139,2]
[386469442,1758310240313,-231.16445665,0.0002114,2]
[386469443,1758310240323,-480.0,0.0002114,2]
[386469444,1758310240333,-480.0,0.0002114,2]
[386469445,1758310240343,-480.0,0.0002114,2]
[386469446,1758310240352,-480.0,0.0002114,2]
[386469447,1758310240362,-480.0,0.0002114,2]
[386469448,1758310240371,-480.0,0.0002114,2]
[386469449,1758310240381,-480.0,0.0002114,2]
[386469450,1758310240391,-480.0,0.0002114,2]
[386469451,1758310240400,-480.0,0.0002114,2]
[386469452,1758310240410,-480.0,0.0002114,2]
[386469453,1758310240420,-480.0,0.0002114,2]
[386469454,1758310240429,-480.0,0.0002114,2]
[386469455,1758310240439,-480.0,0.0002114,2]
[386469456,1758310240449,-480.0,0.0002114,2]
[386469457,1758310240459,-428.74911983,0.0002114,2]
[386469570,1758310243210,-51.25088017,0.0002114,2]
[386469572,1758310243219,-480.0,0.0002114,2]
[386469574,1758310243229,-366.74911983,0.0002114,2]
[386469576,1758310243246,-113.25088017,0.0002114,2]
[386469578,1758310243257,-480.0,0.0002114,2]
[386469580,1758310243267,-480.0,0.0002114,2]
[386469583,1758310243277,-480.0,0.0002114,2]
[386469584,1758310243287,-480.0,0.0002114,2]
[386469587,1758310243297,-480.0,0.0002114,2]
[386469589,1758310243306,-480.0,0.0002114,2]
[386469590,1758310243316,-480.0,0.0002114,2]
[386469592,1758310243325,-480.0,0.0002114,2]
[386469594,1758310243335,-480.0,0.0002114,2]
[386469596,1758310243344,-289.07673093,0.0002114,2]
[386469598,1758310243354,-160.92294055,0.0002114,2]
[386469600,1758310243363,-480.0,0.0002114,2]
[386469602,1758310243372,-480.0,0.0002114,2]